fUST/lending_fUST_20240408
["ID","MTS","AMOUNT","RATE_DAILY","PERIOD"]
[321891520,1712586641110,-1900.0,0.00062739,120]
[321891521,1712586641119,-500.0,0.00062739,120]
[321891523,1712586641128,-1000.0,0.00063,120]
[321891524,1712586641137,-206.8281141,0.00063238,120]
[321891525,1712586641148,-157.36251875,0.00063461,2]
[321891526,1712586641159,-500.0,0.0006356,120]
[321891527,1712586641168,-500.0,0.0006356,120]
[321891528,1712586641177,-500.0,0.0006356,120]
[321891530,1712586641186,-500.0,0.0006356,120]
[321891532,1712586641195,-1121.42,0.0006356,120]
[321891534,1712586641205,-500.0,0.0006356,120]
[321891535,1712586641214,-2812.56,0.0006356,120]
[321891538,1712586641223,-2074.82,0.0006356,120]
[321891539,1712586641232,-1203.62,0.0006356,120]
[321891540,1712586641241,-500.0,0.0006356,120]
[321891542,1712586641250,-2024.69,0.0006356,120]
[321891543,1712586641259,-577.62,0.0006356,120]
[321891545,1712586641268,-500.0,0.0006356,120]
[321891546,1712586641278,-500.0,0.0006356,120]
[321891547,1712586641287,-1136.53,0.00063561,120]
[321891548,1712586641296,-500.0,0.00063561,2]
[321891549,1712586641306,-500.0,0.00063561,120]
[321891550,1712586641315,-552.09,0.00063561,120]
[321891551,1712586641324,-609.33,0.00063561,120]
[321891552,1712586641333,-621.08,0.00063561,120]
[321891553,1712586641343,-1397.89,0.00063561,120]
[321891554,1712586641353,-359.05087139,0.00063561,120]
[321891555,1712586641362,-500.0,0.00063561,120]
[321891556,1712586641371,-985.64,0.00063561,120]
[321891557,1712586641381,-500.0,0.00063561,120]
[321891558,1712586641390,-781.61,0.00063561,120]
[321891559,1712586641399,-500.0,0.00063561,120]
[321891560,1712586641410,-10490.7033342,0.00063561,120]
[321891561,1712586641429,-1985.41,0.00061095,120]
[321891562,1712586641440,-707.1266658,0.00063561,120]
[321891563,1712586641449,-925.89,0.00063561,120]
[321891564,1712586641458,-500.0,0.00063561,120]
[321891565,1712586641468,-1240.13,0.00063561,120]
[321891566,1712586641477,-859.05056124,0.00063561,120]
[321891567,1712586641497,-500.0,0.00061095,120]
[321891568,1712586641506,-3142.68732449,0.00063561,120]
[321891569,1712586641517,-1070.48717231,0.00063561,120]
[321891570,1712586641744,-3571.77877274,0.00060272,7]
[321891571,1712586641754,-500.0,0.00060273,120]
[321891572,1712586641763,-552.14,0.00060273,120]
[321891573,1712586641773,-500.0,0.00061095,120]
[321891574,1712586641783,-552.14,0.00061095,120]
[321891575,1712586641792,-1985.41,0.00061917,120]
[321891576,1712586641801,-500.0,0.00061917,120]
[321891577,1712586641811,-1985.41,0.00062739,120]
[321891578,1712586641819,-4153.12122726,0.00063561,120]
[321891609,1712586643253,-552.14,0.00061917,120]
[321891610,1712586643263,-552.14,0.00062739,120]
[321891612,1712586643272,-999.91396006,0.00063561,120]
[321891613,1712586643283,-6821.73975464,0.00063561,120]
[321891614,1712586643292,-4774.0,0.00063561,90]
[321891616,1712586643301,-500.0,0.00063561,120]
[321891617,1712586643310,-2181.9,0.00063561,120]
[321891618,1712586643319,-500.0,0.00063561,120]
[321891619,1712586643328,-500.0,0.00063561,120]
[321891620,1712586643338,-715.28,0.00063561,21]
[321891621,1712586643347,-593.05,0.00063561,120]
[321891622,1712586643358,-907.53,0.00063561,120]
[321891623,1712586643434,-819.24,0.00063561,120]
[321891624,1712586643445,-500.0,0.00063561,120]
[321891625,1712586643454,-794.97,0.00063561,120]
[321891626,1712586643464,-500.0,0.00063561,120]
[321891627,1712586643472,-591.72607,0.00063561,120]
[321891628,1712586643481,-882.66,0.00063561,120]
[321891629,1712586643491,-591.72607,0.00063561,120]
[321891630,1712586643500,-151.0,0.00063561,120]
[321891631,1712586643509,-500.0,0.00063561,120]
[321891633,1712586643519,-2820.23,0.00063561,120]
[321891635,1712586643528,-202.638607,0.00063561,120]
[321891637,1712586643537,-202.638607,0.00063561,120]
[321891639,1712586643546,-181.91,0.00063561,120]
[321891640,1712586643556,-4887.83,0.00063561,120]
[321891641,1712586643565,-1787.97,0.00063561,120]
[321891642,1712586643574,-500.0,0.00063561,120]
[321891643,1712586643583,-2237.81,0.00063561,120]
[321891644,1712586643592,-1900.0,0.00063561,120]
[321891645,1712586643602,-563.11,0.00063561,120]
[321891646,1712586643611,-1985.41,0.00063561,120]
[321891647,1712586643620,-552.14,0.00063561,120]
[321891648,1712586643629,-449.166071,0.000639,120]
[321891649,1712586643638,-449.166071,0.000639,120]
[321891650,1712586643651,-151.0,0.000639,120]
[321891651,1712586643663,-151.0,0.000639,120]
[321891652,1712586643672,-151.0,0.000639,120]
[321891653,1712586643681,-151.0,0.000639,120]
[321891654,1712586643691,-184.196923,0.00063927,2]
[321891655,1712586643700,-1746.95839173,0.0006427,2]
[321891656,1712586643709,-129100.46807365,0.000643,120]
[321891657,1712586643718,-1524.856587,0.000643,14]
[321891658,1712586643728,-1524.856587,0.000643,14]
[321891659,1712586643737,-151.0,0.000643,120]
[321891660,1712586643746,-246.807362,0.000643,120]
[321891661,1712586643755,-249.753083,0.000643,120]
[321891662,1712586643764,-246.807362,0.000643,120]
[321891663,1712586643773,-399.9912,0.000643,120]
[321891664,1712586643782,-399.9912,0.000643,120]
[321891665,1712586643791,-151.0,0.000643,120]
[321891666,1712586643801,-151.0,0.000643,120]
[321891667,1712586643810,-151.0,0.000643,120]
[321891668,1712586643819,-151.0,0.000643,120]
[321891669,1712586643828,-591.72607,0.000643,120]
[321891670,1712586643838,-591.72607,0.000643,120]
[321891671,1712586643848,-153.139591,0.000643,120]
[321891672,1712586643858,-202.638607,0.000643,120]
[321891673,1712586643868,-202.638607,0.000643,120]
[321891674,1712586643877,-151.0,0.000643,120]
[321891675,1712586643886,-2037.18210827,0.0006437,120]
[321891676,1712586643896,-500.0,0.00064382,120]
[321891677,1712586643906,-500.0,0.00064382,120]
[321891678,1712586643915,-500.0,0.00064382,120]
[321891679,1712586643924,-500.0,0.00064382,120]
[321891680,1712586643932,-1121.42,0.00064382,120]
[321891681,1712586643941,-2812.56,0.00064382,120]
[321891682,1712586643950,-2074.82,0.00064382,120]
[321891683,1712586643959,-1203.62,0.00064382,120]
[321891684,1712586643968,-2024.69,0.00064382,120]
[321891685,1712586643977,-577.62,0.00064382,120]
[321891686,1712586643986,-500.0,0.00064382,120]
[321891687,1712586643995,-1136.53,0.00064383,120]
[321891688,1712586644004,-500.0,0.00064383,2]
[321891689,1712586644013,-500.0,0.00064383,120]
[321891690,1712586644023,-552.09,0.00064383,120]
[321891691,1712586644032,-609.33,0.00064383,120]
[321891692,1712586644043,-621.08,0.00064383,120]
[321891693,1712586644052,-1397.89,0.00064383,120]
[321891694,1712586644061,-290.569538,0.00064383,120]
[321891695,1712586644069,-500.0,0.00064383,120]
[321891696,1712586644078,-985.64,0.00064383,120]
[321891697,1712586644087,-151.0,0.00064383,120]
[321891698,1712586644096,-409.18848,0.00064383,120]
[321891699,1712586644104,-409.18848,0.00064383,120]
[321891700,1712586644114,-500.0,0.00064383,120]
[321891701,1712586644122,-925.89,0.00064383,120]
[321891702,1712586644131,-500.0,0.00064383,120]
[321891703,1712586644140,-1240.13,0.00064383,120]
[321891704,1712586644148,-17047.0,0.00064383,120]
[321891705,1712586644159,-4774.0,0.00064383,90]
[321891706,1712586644168,-500.0,0.00064383,120]
[321891707,1712586644176,-2181.9,0.00064383,120]
[321891708,1712586644185,-500.0,0.00064383,120]
[321891709,1712586644194,-500.0,0.00064383,120]
[321891710,1712586644204,-593.05,0.00064383,120]
[321891711,1712586644213,-715.28,0.00064383,21]
[321891712,1712586644222,-907.53,0.00064383,120]
[321891713,1712586644232,-819.24,0.00064383,120]
[321891714,1712586644241,-500.0,0.00064383,120]
[321891715,1712586644252,-794.97,0.00064383,120]
[321891716,1712586644262,-500.0,0.00064383,120]
[321891717,1712586644271,-882.66,0.00064383,120]
[321891718,1712586644280,-500.0,0.00064383,120]
[321891719,1712586644289,-2820.23,0.00064383,120]
[321891720,1712586644298,-4887.83,0.00064383,120]
[321891721,1712586644308,-1787.97,0.00064383,120]
[321891722,1712586644317,-500.0,0.00064383,120]
[321891723,1712586644326,-2237.81,0.00064383,120]
[321891724,1712586644337,-1900.0,0.00064383,120]
[321891725,1712586644347,-1985.41,0.00064383,120]
[321891726,1712586644357,-552.14,0.00064383,120]
[321891727,1712586644366,-1524.856587,0.000649,14]
[321891728,1712586644376,-1524.856587,0.000649,14]
[321891729,1712586644385,-151.0,0.000649,120]
[321891730,1712586644395,-246.807362,0.000649,120]
[321891731,1712586644407,-246.807362,0.000649,120]
[321891732,1712586644417,-399.9912,0.000649,120]
[321891733,1712586644426,-399.9912,0.000649,120]
[321891734,1712586644436,-151.0,0.000649,120]
[321891735,1712586644445,-151.0,0.000649,120]
[321891736,1712586644454,-151.0,0.000649,120]
[321891737,1712586644464,-151.0,0.000649,120]
[321891738,1712586644474,-591.72607,0.000649,120]
[321891739,1712586644483,-591.72607,0.000649,120]
[321891740,1712586644492,-202.638607,0.000649,120]
[321891741,1712586644502,-202.638607,0.000649,120]
[321891742,1712586644511,-174.706826,0.000649,120]
[321891743,1712586644520,-2364.17566589,0.000649,120]
[321891744,1712586644534,-21043.17508463,0.000649,120]
[321891745,1712586644549,-46564.10505223,0.000649,120]
[321891818,1712586646453,-662.86,0.00060273,120]
[321891819,1712586646462,-2912.14,0.00061094,120]
[321891867,1712586676242,229.4771891,0.00027397,2]
[321891868,1712586676268,63.9535569,0.00027397,2]
[321891882,1712587194272,-154.84515485,0.00026868,2]
[321891883,1712587194300,-637.89349192,0.00026869,2]
[321891884,1712587194327,-282.66267272,0.00026869,2]
[321891885,1712587194356,-186.328645,0.0002687,2]
[321891886,1712587194383,-154.84515485,0.00027,2]
[321891887,1712587194409,-3136.8691598,0.0002712,2]
[321891888,1712587194435,-342.2126458,0.00027121,2]
[321891889,1712587194462,-1028.78868364,0.00027121,2]
[321891890,1712587194490,-300.0,0.00027123,2]
[321891891,1712587194518,-250.0,0.00027123,2]
[321891892,1712587194545,-570.542025,0.00027125,2]
[321891893,1712587194575,-188.19613238,0.00027297,2]
[321891894,1712587194608,-271.64376324,0.00027396,2]
[321891895,1712587194636,-154.87609912,0.00027397,2]
[321891896,1712587194662,-154.87609912,0.00027397,2]
[321891897,1712587194689,-166.10955958,0.00027397,2]
[321891898,1712587194830,-10073.25722422,0.00027397,2]
[321891899,1712587194863,-515.73759495,0.00027397,2]
[321891900,1712587194890,-198.973832,0.00027397,2]
[321891901,1712587194918,-420.0,0.00029835,2]
[321891902,1712587194945,-622.09842242,0.00029899,4]
[321891903,1712587194971,-167.48685813,0.00029999,2]
[321891904,1712587194998,-162.0,0.00029999,2]
[321891905,1712587195025,-18593.72069307,0.0003,30]
[321891906,1712587195051,-587.0,0.00032819,2]
[321891907,1712587195078,-293.430746,0.00033165,2]
[321891908,1712587195106,-198.973832,0.00033165,2]
[321891909,1712587195131,-464.50545485,0.00034,4]
[321891910,1712587195158,-823.0,0.00036101,2]
[321891911,1712587195183,-200.0,0.00038328,2]
[321891912,1712587195210,-176.485503,0.00038388,120]
[321891913,1712587195238,-293.430746,0.00038933,2]
[321891914,1712587195264,-198.973832,0.00038933,2]
[321891915,1712587195294,-13138.7604366,0.00039069,2]
[321891916,1712587195320,-332.6291542,0.00039546,2]
[321891917,1712587195350,-1152.0,0.00039711,3]
[321891918,1712587195376,-570.542025,0.00040687,2]
[321891919,1712587195402,-2126.35779954,0.00041,15]
[321891920,1712587195429,-166.666666,0.00041096,2]
[321891921,1712587195455,-166.666666,0.00042208,2]
[321891922,1712587195481,-153.3012528,0.00043256,30]
[321891923,1712587195508,-166.666666,0.0004332,2]
[321891924,1712587195535,-1613.0,0.00043682,3]
[321891925,1712587195561,-166.666666,0.00044432,2]
[321891926,1712587195591,-293.430746,0.00044701,2]
[321891927,1712587195618,-198.973832,0.00044701,2]
[321891928,1712587195645,-176.485503,0.00044786,120]
[321891929,1712587195673,-166.666666,0.00045545,2]
[321891930,1712587195700,-166.666666,0.00046657,2]
[321891931,1712587195727,-2258.0,0.0004805,3]
[321891932,1712587195754,-2720.996378,0.00049,68]
[321891933,1712587197597,1028.78868364,0.00026867,2]
[321891939,1712587214764,10000.0,0.000262,2]
[321891962,1712587553160,-1419.78366367,0.00042885,4]
[321891963,1712587553186,-330.73794075,0.00042886,30]
[321891965,1712587626132,-332.672209,0.00041156,2]
[321891966,1712587626155,-154.84515485,0.00042885,4]
[321891967,1712587626183,-1086.79986634,0.00042886,30]
[321891968,1712587646130,-346.20219291,0.00042886,30]
[321891969,1712587646149,-153.51768998,0.00044492,30]
[321891970,1712587646172,-332.672209,0.00046156,2]
[321891971,1712587646191,-500.0,0.000466,2]
[321891972,1712587646210,-153.03490236,0.00048171,30]
[321891973,1712587646229,-150.0,0.00049,68]
[321891974,1712587646248,-979.49096649,0.00050468,4]
[321891975,1712587646268,-293.430746,0.00050469,2]
[321891976,1712587646287,-198.973832,0.00050469,2]
[321891977,1712587646305,-153.03490236,0.00050488,60]
[321891978,1712587646328,-332.672209,0.00051156,2]
[321891979,1712587646347,-158.2979146,0.00053278,2]
[321891980,1712587646366,-176.519126,0.00053423,2]
[321891981,1712587646385,-176.485503,0.00053512,120]
[321891982,1712587646404,-166.666666,0.0005429,2]
[321891983,1712587646427,-2100.0,0.00055,120]
[321891984,1712587646447,-737.0748186,0.00055297,2]
[321891985,1712587646467,-153.03490236,0.00055391,120]
[321891986,1712587646485,-166.666666,0.0005577,2]
[321891987,1712587646505,-158.29791456,0.00055824,2]
[321891988,1712587646524,-700.0,0.00055857,10]
[321891989,1712587646543,-217.95043263,0.00055858,4]
[321891990,1712587646561,-479.20287423,0.00055858,4]
[321891991,1712587646579,-500.0,0.00056,30]
[321891992,1712587646599,-293.430746,0.00056236,2]
[321891993,1712587646617,-198.973832,0.00056236,2]
[321891994,1712587646636,-166.666666,0.0005725,2]
[321891995,1712587646657,-158.29791456,0.0005837,2]
[321891996,1712587646680,-900.0,0.000586,90]
[321891997,1712587646699,-166.666666,0.0005873,2]
[321891998,1712587646719,-350.00696043,0.00058798,4]
[321891999,1712587646739,-2217.93763405,0.00058798,4]
[321892000,1712587646758,-370.7275732,0.00058798,4]
[321892001,1712587646779,-154.84515485,0.00058798,4]
[321892002,1712587646799,-364.35123334,0.00058799,120]
[321892003,1712587646819,-867.76010953,0.00058799,4]
[321892004,1712587646838,-4197.63451196,0.000588,120]
[321892005,1712587758094,-165.172306,0.00027397,2]
[321892006,1712587758115,-165.172306,0.0003653,2]
[321892007,1712587758137,-190.27874603,0.00042886,4]
[321892008,1712587758160,-153.090527,0.00044513,30]
[321892009,1712587758180,-73.57162159,0.00045662,2]
[321892010,1712587762146,-91.60068441,0.00045662,2]
[321892011,1712587762167,-165.172306,0.00054794,2]
[321892012,1712587762187,-490.6972396,0.00058,120]
[321892063,1712587832138,-166.666666,0.00057436,2]
[321892065,1712587832147,-33.2473749,0.00058,120]
[321892067,1712587832157,-266.12790825,0.0005821,4]
[321892069,1712587832166,-304.59336467,0.00058799,4]
[321892071,1712587832176,-700.0,0.00058799,10]
[321892073,1712587832185,-45802.36548804,0.000588,120]
[321892074,1712587832194,-166.666666,0.00059002,2]
[321892075,1712587832203,-400.0,0.0006,120]
[321892076,1712587832213,-544.3361196,0.0006001,14]
[321892077,1712587832222,-156.93341435,0.0006011,2]
[321892078,1712587832231,-294.44711976,0.00060269,7]
[321892079,1712587832241,-358.09056064,0.00060269,7]
[321892080,1712587832250,-283.10912685,0.0006027,7]
[321892081,1712587832259,-283.62862988,0.00060271,7]
[321892082,1712587832269,-668.64742128,0.00060271,15]
[321892083,1712587832278,-3357.77760173,0.00060271,7]
[321892084,1712587832289,-385.68442456,0.00060271,7]
[321892085,1712587832298,-306.11929807,0.00060271,7]
[321892086,1712587832307,-155.75207543,0.00060271,7]
[321892087,1712587832317,-182.83279172,0.00060271,7]
[321892088,1712587832326,-1905.61778224,0.00060271,7]
[321892089,1712587832335,-387.53991805,0.00060271,7]
[321892090,1712587832344,-1273.43712135,0.00060271,7]
[321892091,1712587832353,-422.44192882,0.00060271,7]
[321892092,1712587832362,-171.57194256,0.00060271,7]
[321892093,1712587832375,-704.8279547,0.00060271,7]
[321892094,1712587832384,-270.33183749,0.00060271,7]
[321892095,1712587832393,-218.10411422,0.00060271,7]
[321892096,1712587832402,-411.0650617,0.00060271,7]
[321892097,1712587832412,-2773.31834083,0.00060271,7]
[321892098,1712587832422,-484.59961287,0.00060271,7]
[321892099,1712587832431,-241.41934544,0.00060271,7]
[321892100,1712587832440,-967.17141015,0.00060272,7]
[321892101,1712587832450,-2450.53220334,0.00060272,7]
[321892102,1712587832460,-16664.32626724,0.00060273,61]
[321892103,1712587832469,-156.52933474,0.00060273,120]
[321892104,1712587832479,-500.0,0.00060273,120]
[321892105,1712587832488,-500.0,0.00060273,120]
[321892106,1712587832498,-500.0,0.00060273,120]
[321892107,1712587832507,-500.0,0.00060273,120]
[321892108,1712587832516,-500.0,0.00060273,120]
[321892109,1712587832525,-223.68040814,0.00060273,120]
[321892110,1712587832540,-500.0,0.00060273,120]
[321892112,1712587832551,-500.0,0.00060273,120]
[321892114,1712587832560,-500.0,0.00060273,120]
[321892115,1712587832570,-1077.68,0.00060273,120]
[321892116,1712587832580,-500.0,0.00060273,120]
[321892117,1712587832589,-500.0,0.00060273,120]
[321892118,1712587832598,-492.48544405,0.00060273,120]
[321892121,1712587832611,-364.27455595,0.00060273,120]
[321892122,1712587832620,-537.40592393,0.00060273,120]
[321892124,1712587832629,-500.0,0.00060273,120]
[321892126,1712587832639,-500.0,0.00060273,120]
[321892127,1712587832648,-500.0,0.00060273,120]
[321892128,1712587832657,-500.0,0.00060273,120]
[321892129,1712587832666,-420.44178186,0.00060273,120]
[321892130,1712587832676,-502.60377968,0.00060273,120]
[321892131,1712587832685,-526.63,0.00060273,120]
[321892132,1712587832695,-500.0,0.00060273,120]
[321892133,1712587832706,-1302.92,0.00060273,120]
[321892134,1712587832719,-883.87,0.00060273,120]
[321892135,1712587832732,-559.89,0.00060273,120]
[321892136,1712587832746,-500.0,0.00060273,120]
[321892138,1712587832759,-500.0,0.00060273,120]
[321892139,1712587832769,-500.0,0.00060273,120]
[321892141,1712587832782,-317.1092264,0.00060273,120]
[321892143,1712587832796,-500.0,0.00060273,120]
[321892145,1712587832808,-500.0,0.00060273,120]
[321892146,1712587832821,-500.0,0.00060273,120]
[321892147,1712587832833,-299.21061271,0.00060273,120]
[321892148,1712587832857,-450.37319255,0.00060273,120]
[321892149,1712587832870,-500.0,0.00060273,120]
[321892150,1712587832880,-500.0,0.00060273,120]
[321892151,1712587832890,-500.0,0.00060273,120]
[321892152,1712587832902,-500.0,0.00060273,120]
[321892153,1712587832913,-500.0,0.00060273,120]
[321892154,1712587832924,-500.0,0.00060273,120]
[321892155,1712587832936,-1923.13,0.00060273,120]
[321892156,1712587832947,-500.01907654,0.00060273,120]
[321892157,1712587832959,-500.0,0.00060273,120]
[321892158,1712587832972,-1109.37,0.00060273,120]
[321892159,1712587832984,-10649.33,0.00060273,120]
[321892160,1712587832994,-500.0,0.00060273,120]
[321892161,1712587833004,-2345.23,0.00060273,120]
[321892162,1712587833018,-732.94,0.00060273,120]
[321892163,1712587833029,-500.0,0.00060273,120]
[321892164,1712587833043,-500.0,0.00060273,120]
[321892165,1712587833056,-830.91,0.00060273,120]
[321892166,1712587833066,-500.0,0.00060273,120]
[321892167,1712587833078,-500.0,0.00060273,120]
[321892168,1712587833089,-500.0,0.00060273,120]
[321892169,1712587833101,-714.09,0.00060273,120]
[321892170,1712587833113,-15305.89,0.00060273,120]
[321892171,1712587833126,-1950.5,0.00060273,120]
[321892172,1712587833139,-962.04,0.00060273,2]
[321892173,1712587833151,-576.59,0.00060273,120]
[321892174,1712587833164,-500.0,0.00060273,120]
[321892175,1712587833177,-2695.62,0.00060273,120]
[321892176,1712587833187,-500.0,0.00060273,120]
[321892177,1712587833198,-748.8,0.00060273,120]
[321892178,1712587833208,-500.0,0.00060273,120]
[321892179,1712587833219,-500.0,0.00060273,120]
[321892180,1712587833231,-2162.64,0.00060273,120]
[321892181,1712587833243,-500.0,0.00060273,120]
[321892182,1712587833255,-1163.82,0.00060273,120]
[321892184,1712587833266,-500.0,0.00060273,120]
[321892186,1712587833280,-500.0,0.00060273,120]
[321892187,1712587833293,-517.28182246,0.00060273,120]
[321892189,1712587833304,-500.0,0.00060273,120]
[321892191,1712587833314,-500.0,0.00060273,120]
[321892193,1712587833326,-500.0,0.00060273,120]
[321892195,1712587833336,-500.0,0.00060273,120]
[321892197,1712587833347,-530.36628911,0.00060273,120]
[321892200,1712587833358,-500.0,0.00060273,120]
[321892202,1712587833369,-1982.02,0.00060273,120]
[321892204,1712587833382,-500.0,0.00060273,120]
[321892206,1712587833392,-500.0,0.00060273,120]
[321892208,1712587833403,-540.95,0.00060273,120]
[321892210,1712587833414,-500.0,0.00060273,120]
[321892213,1712587833426,-500.0,0.00060273,120]
[321892215,1712587833436,-500.0,0.00060273,120]
[321892217,1712587833446,-776.21,0.00060273,120]
[321892219,1712587833457,-500.0,0.00060273,120]
[321892221,1712587833469,-4457.34,0.00060273,90]
[321892223,1712587833480,-490.04436892,0.00060273,120]
[321892226,1712587833491,-861.87,0.00060273,120]
[321892228,1712587833502,-500.0,0.00060273,120]
[321892230,1712587833513,-500.0,0.00060273,120]
[321892232,1712587833524,-500.0,0.00060273,120]
[321892234,1712587833536,-737.67,0.00060273,120]
[321892236,1712587833547,-676.76,0.00060273,21]
[321892238,1712587833557,-500.0,0.00060273,120]
[321892241,1712587833569,-500.0,0.00060273,120]
[321892243,1712587833581,-500.0,0.00060273,120]
[321892245,1712587833591,-500.0,0.00060273,120]
[321892247,1712587833603,-500.0,0.00060273,120]
[321892250,1712587833613,-500.0,0.00060273,120]
[321892252,1712587833624,-500.0,0.00060273,120]
[321892254,1712587833636,-500.0,0.00060273,120]
[321892256,1712587833648,-599.04,0.00060273,120]
[321892258,1712587833659,-500.0,0.00060273,120]
[321892260,1712587833670,-500.0,0.00060273,120]
[321892262,1712587833680,-500.0,0.00060273,120]
[321892265,1712587833796,-500.0,0.00060273,60]
[321892266,1712587833806,-1686.44,0.00060273,120]
[321892267,1712587833816,-500.0,0.00060273,120]
[321892268,1712587833826,-500.0,0.00060273,120]
[321892269,1712587833835,-500.0,0.00060273,120]
[321892270,1712587833845,-4451.46,0.00060273,120]
[321892271,1712587833853,-349.36719685,0.00060273,120]
[321892272,1712587833863,-2675.24,0.00060273,120]
[321892273,1712587833873,-840.33,0.00060273,120]
[321892274,1712587833882,-3524.25,0.00060273,120]
[321892275,1712587833891,-500.0,0.00060273,120]
[321892276,1712587833900,-500.0,0.00060273,120]
[321892277,1712587833909,-500.0,0.00060273,120]
[321892278,1712587833919,-500.0,0.00060273,120]
[321892279,1712587833929,-507.23035896,0.00060273,120]
[321892280,1712587833938,-1900.0,0.00060273,120]
[321892281,1712587833947,-166.666666,0.00060568,2]
[321892282,1712587833957,-158.29791456,0.00060915,2]
[321892283,1712587833967,-562.30559427,0.00061092,7]
[321892284,1712587833977,-500.0,0.00061094,120]
[321892285,1712587833987,-497.25711445,0.00061094,120]
[321892286,1712587833998,-500.0,0.00061094,120]
[321892287,1712587834008,-502.99064633,0.00061094,120]
[321892288,1712587834017,-500.0,0.00061094,120]
[321892289,1712587834026,-500.0,0.00061094,120]
[321892290,1712587834036,-504.69923024,0.00061094,120]
[321892291,1712587834046,-213.79525524,0.00061094,120]
[321892292,1712587834055,-497.002997,0.00061094,120]
[321892293,1712587834063,-250.65551281,0.00061094,120]
[321892294,1712587834073,-497.686495,0.00061094,120]
[321892295,1712587834082,-393.16412984,0.00061094,120]
[321892296,1712587834090,-500.0,0.00061094,120]
[321892297,1712587834099,-500.0,0.00061094,120]
[321892298,1712587834108,-500.0,0.00061094,120]
[321892299,1712587834120,-500.0,0.00061095,120]
[321892300,1712587834130,-500.0,0.00061095,120]
[321892301,1712587834139,-500.0,0.00061095,120]
[321892302,1712587834150,-500.0,0.00061095,120]
[321892303,1712587834159,-500.0,0.00061095,120]
[321892304,1712587834168,-500.0,0.00061095,120]
[321892305,1712587834178,-320.3,0.00061095,120]
[321892306,1712587834188,-1077.68,0.00061095,120]
[321892307,1712587834197,-856.76,0.00061095,120]
[321892308,1712587834206,-500.0,0.00061095,120]
[321892309,1712587834216,-500.0,0.00061095,120]
[321892310,1712587834226,-526.63,0.00061095,120]
[321892311,1712587834235,-500.0,0.00061095,120]
[321892312,1712587834244,-1302.92,0.00061095,120]
[321892313,1712587834254,-883.87,0.00061095,120]
[321892314,1712587834263,-559.89,0.00061095,120]
[321892315,1712587834273,-500.0,0.00061095,120]
[321892316,1712587834284,-500.0,0.00061095,120]
[321892317,1712587834294,-500.0,0.00061095,120]
[321892318,1712587834303,-500.0,0.00061095,120]
[321892319,1712587834312,-500.0,0.00061095,120]
[321892320,1712587834321,-500.0,0.00061095,120]
[321892321,1712587834331,-1923.13,0.00061095,120]
[321892322,1712587834340,-500.0,0.00061095,120]
[321892323,1712587834350,-1109.37,0.00061095,120]
[321892324,1712587834359,-10649.33,0.00061095,120]
[321892325,1712587834367,-500.0,0.00061095,120]
[321892326,1712587834381,-2345.23,0.00061095,120]
[321892327,1712587834389,-732.94,0.00061095,120]
[321892328,1712587834398,-500.0,0.00061095,120]
[321892329,1712587834407,-500.0,0.00061095,120]
[321892330,1712587834417,-830.91,0.00061095,120]
[321892331,1712587834426,-500.0,0.00061095,120]
[321892332,1712587834435,-500.0,0.00061095,120]